[Event "Turkey IS Bank Super League 2017"]
[Site "Darica-Kocaeli"]
[Date "2017.08.07"]
[Round "13"]
[White "Bozbey, Ali"]
[Black "Tuncer, Tuna"]
[Result "0-1"]
[ECO "B94"]
[WhiteElo "2139"]
[BlackElo "2274"]
[Annotator "ChessBase"]
[PlyCount "100"]
[EventType "team-tourn"]
[EventCountry "TUR"]
[SourceTitle "playchess.com"]
[Source "ChessBase"]
[SourceQuality "1"]
[TimeControl "40/5400+30:1800+30"]

1. e4 {[%emt 0:00:30]} c5 {[%emt 0:01:00]} 2. Nc3 {[%emt 0:00:30]} a6 {[%emt 0:00:30]} 3. Nf3 {[%emt 0:01:30]} d6 {[%emt 0:00:30]} 4. d4 {[%emt 0:00:30]} cxd4 {[%emt 0:00:30]} 5. Nxd4 {[%emt 0:00:00]} Nf6 {[%emt 0:00:30]} 6. Bg5 {[%emt 0:00:00]} Nbd7 {[%emt 0:00:00]} 7. f4 {[%emt 0:04:30]} Qc7 {[%emt 0:00:00]} 8. Qf3 {[%emt 0:00:30]} h6 {[%emt 0:12:30]} 9. Bxf6 {[%emt 0:07:30]} Nxf6 {[%emt 0:00:30]} 10. h3 {[%emt 0:00:30]} e6 {[%emt 0:06:30]} 11. O-O-O {[%emt 0:01:30]} Be7 {[%emt 0:02:30]} 12. g4 {[%emt 0:02:30]} b5 {[%emt 0:09:30]} 13. Rg1 {[%emt 0:15:30]} Nd7 {[%emt 0:06:30]} 14. Kb1 {[%emt 0:11:30]} Bb7 {[%emt 0:01:30]} 15. f5 {[%emt 0:04:30]} e5 {[%emt 0:05:30]} 16. Nb3 {[%emt 0:01:30]} Rc8 {[%emt 0:05:30]} 17. Rg2 {[%emt 0:00:30]} Nb6 {[%emt 0:03:30]} 18. Bd3 {[%emt 0:05:30]} O-O {[%emt 0:07:30]} 19. g5 {[%emt 0:05:30]} Bxg5 {[%emt 0:10:30]} 20. f6 {[%emt 0:00:00]} Qd8 {[%emt 0:09:03]} 21. fxg7 {[%emt 0:01:00]} Re8 {[%emt 0:00:01]} 22. Nd5 {[%emt 0:03:30]} Bxd5 {[%emt 0:03:31]} 23. exd5 {[%emt 0:00:00]} e4 {[%emt 0:00:04]} 24. Bxe4 {[%emt 0:00:00]} Qf6 {[%emt 0:00:33]} 25. Qd3 {[%emt 0:01:30]} Nc4 {[%emt 0:02:30]} 26. Nd4 {[%emt 0:00:30]} Nd2+ {[%emt 0:04:53]} 27. Rgxd2 {[%emt 0:08:30]} Bxd2 {[%emt 0:00:30]} 28. Rg1 {[%emt 0:00:00]} Bg5 {[%emt 0:02:46]} 29. h4 {[%emt 0:00:00]} Qf2 {[%emt 0:00:25]} 30. Nf3 {[%emt 0:00:00]} Rc4 {[%emt 0:01:28]} 31. Bh7+ {[%emt 0:01:00]} Kxg7 {[%emt 0:00:30]} 32. Rf1 {[%emt 0:00:00]} Qg3 {[%emt 0:03:02]} 33. hxg5 {[%emt 0:00:00]} hxg5 {[%emt 0:00:13]} 34. Rd1 {[%emt 0:05:30]} g4 {[%emt 0:00:36]} 35. b3 {[%emt 0:01:30]} Rf4 {[%emt 0:01:08]} 36. Ne1 {[%emt 0:02:49]} Re3 {[%emt 0:00:39]} 37. Qd2 {[%emt 0:00:34]} Kxh7 {[%emt 0:00:56]} 38. Ng2 {[%emt 0:00:04]} Rfe4 {[%emt 0:00:58]} 39. Nxe3 {[%emt 0:00:18]} Rxe3 {[%emt 0:00:14]} 40. Rh1+ {[%emt 0:00:00]} Kg6 {[%emt 0:01:30]} 41. Kb2 {[%emt 0:07:15]} Qe5+ {[%emt 0:04:30]} 42. Ka3 {[%emt 0:00:30]} g3 {[%emt 0:05:30]} 43. Rh4 {[%emt 0:03:30]} Qg5 {[%emt 0:06:01]} 44. Qd4 {[%emt 0:00:30]} g2 {[%emt 0:00:56]} 45. Qh8 {[%emt 0:02:30]} g1=Q {[%emt 0:03:34]} 46. Qg8+ {[%emt 0:00:30]} Kf6 {[%emt 0:00:06]} 47. Qd8+ {[%emt 0:01:30]} Re7 {[%emt 0:00:15]} 48. Qh8+ {[%emt 0:00:30]} Qg7 {[%emt 0:00:38]} 49. Rh6+ {[%emt 0:00:30]} Ke5 {[%emt 0:00:50]} 50. Rh5+ {[%emt 0:00:30]} f5 {[%emt 0:00:16]} 0-1

[Event "Turkey IS Bank Super League 2017"]
[Site "Darica-Kocaeli"]
[Date "2017.08.06"]
[Round "13"]
[White "Ererdem, Gani Eren"]
[Black "Sevgi, Volkan"]
[Result "1-0"]
[ECO "A90"]
[WhiteElo "2090"]
[BlackElo "2199"]
[Annotator "NA"]
[PlyCount "81"]
[EventType "team-tourn"]
[EventCountry "TUR"]
[SourceTitle "playchess.com"]
[Source "ChessBase"]
[SourceQuality "1"]
[TimeControl "40/5400+30:1800+30"]

1. d4 {[%emt 0:00:30]} d5 {[%emt 0:02:00]} 2. Nf3 {[%emt 0:01:30]} c6 {[%emt 0:00:30]} 3. c4 {[%emt 0:01:30]} e6 {[%emt 0:00:30]} 4. g3 {[%emt 0:12:30]} f5 {[%emt 0:01:30]} 5. Bg2 {[%emt 0:00:30]} Nf6 {[%emt 0:00:30]} 6. O-O {[%emt 0:00:30]} Bd6 {[%emt 0:00:00] LiveBook: 2481 Games} 7. Bf4 {[%emt 0:04:30]} O-O {[%emt 0:01:00]} 8. Nbd2 {[%emt 0:08:30] A90: Dutch Defence: Miscellaneous and Modern Stonewall (with ...Bd6)} (8. Bxd6 Qxd6 9. Nbd2 Nbd7 10. Qc2 b6 11. Rac1 Ba6 12. Rfd1 Ne4 13. e3 Bb7 14. Ne1 g5 15. Nd3 Rac8 16. b4 Ba6 17. c5 Bxd3 18. Qxd3 bxc5 19. bxc5 {0-1 (41) Shyam,S (2534)-McDonald,N (2418) London 2013}) 8... b6 {[%emt 0:03:30]} 9. Rc1 {[%emt 0:05:30]} Bb7 {[%emt 0:02:30]} 10. Bxd6 {[%emt 0:04:30]} Qxd6 {[%emt 0:00:30]} 11. Ne5 {[%emt 0:00:30]} Nbd7 {[%emt 0:04:30]} 12. Ndf3 {[%emt 0:01:30]} c5 $146 {[%emt 0:10:30]} ({Find the theoretical novelty and annotate with similar games:} 12... Rac8 13. Nxd7 Nxd7 14. Qa4 {0-1 (40) Feofanov,A (1904)-Shulajakov,A Kemerovo 2012}) 13. Qa4 {[%emt 0:06:30]} cxd4 {[%emt 0:16:30]} 14. Nxd7 {[%emt 0:00:30]} Nxd7 {[%emt 0:00:30]} 15. Nxd4 {[%emt 0:01:30]} Nc5 {[%emt 0:00:30]} 16. Qb4 {[%emt 0:10:30]} f4 {[%emt 0:02:30]} 17. Rcd1 {[%emt 0:05:30]} Rad8 {[%emt 0:17:30]} 18. Nb5 {[%emt 0:06:30]} Qe7 {[%emt 0:01:30]} 19. Nxa7 {[%emt 0:12:40]} d4 $16 {[%emt 0:00:30]} (19... Ra8 $11 20. Nb5 (20. Qxb6 Na4 $15) 20... Ra4) 20. Qxb6 {[%emt 0:03:14]} Rb8 {[%emt 0:08:30]} 21. Bxb7 {[%emt 0:04:15]} Rxb7 {[%emt 0:02:30]} 22. Nc6 {[%emt 0:00:05]} Rxb6 {[%emt 0:17:35]} 23. Nxe7+ {[%emt 0:00:30]} Kf7 {[%emt 0:00:00]} 24. b4 {[%emt 0:00:00]} Na4 {[%emt 0:04:56]} 25. c5 {[%emt 0:00:29]} Rxb4 {[%emt 0:01:47]} 26. Nc6 {[%emt 0:00:35]} Rb5 {[%emt 0:00:24]} 27. Rxd4 {[%emt 0:01:37]} Nc3 {[%emt 0:00:17]} 28. Rxf4+ {[%emt 0:01:52]} Ke8 {[%emt 0:00:30]} 29. Rxf8+ {[%emt 0:00:30]} Kxf8 {[%emt 0:00:30]} 30. Nd4 {[%emt 0:00:00]} Ra5 {[%emt 0:00:00]} 31. Nxe6+ {[%emt 0:03:40]} Ke7 {[%emt 0:00:24]} 32. Nd4 {[%emt 0:00:17]} Ra4 {[%emt 0:01:19]} 33. e3 {[%emt 0:01:40]} Rxa2 {[%emt 0:00:19]} 34. Rc1 {[%emt 0:01:02]} Nd5 {[%emt 0:00:30]} 35. c6 {[%emt 0:00:30]} Nc7 {[%emt 0:00:30]} 36. Rb1 {[%emt 0:00:30]} Ra5 {[%emt 0:00:00]} 37. Rb7 {[%emt 0:00:27]} Kd6 {[%emt 0:00:04]} 38. Rb8 {[%emt 0:00:00]} Ke7 {[%emt 0:00:18]} 39. Rg8 {[%emt 0:00:12]} Ne8 {[%emt 0:01:41]} 40. c7 {[%emt 0:00:00]} Rc5 {[%emt 0:01:26]} 41. Nb5 {[%emt 0:03:25]} 1-0

[Event "Turkey IS Bank Super League 2017"]
[Site "Darica-Kocaeli"]
[Date "2017.08.08"]
[Round "13"]
[White "Arda, Cagil Irmak"]
[Black "Yassibag, Ipek Asli"]
[Result "0-1"]
[ECO "B01"]
[WhiteElo "2080"]
[BlackElo "1880"]
[Annotator "NA RC"]
[PlyCount "118"]
[EventType "team-tourn"]
[EventCountry "TUR"]
[SourceTitle "playchess.com"]
[Source "ChessBase"]
[SourceQuality "1"]
[TimeControl "40/5400+30:1800+30"]

1. e4 {[%emt 0:01:30]} d5 {[%emt 0:01:00]} 2. exd5 {[%emt 0:00:00]} Nf6 {[%emt 0:00:30]} 3. Bb5+ {[%emt 0:00:00]} Bd7 {[%emt 0:00:30]} 4. Be2 {[%emt 0:00:30]} Nxd5 {[%emt 0:00:30]} 5. d4 {[%emt 0:00:00] LiveBook: 364 Games} Bf5 {[%emt 0:00:30]} 6. Nf3 {[%emt 0:00:00]} e6 {[%emt 0:02:30]} 7. O-O {[%emt 0:01:30]} Bd6 {[%emt 0:05:30]} 8. g3 {[%emt 0:05:30] B01: Scandinavian Defence} (8. Re1 O-O 9. a3 Nd7 10. c4 Nf4 11. Bf1 c5 12. Nc3 a6 13. Ne4 Bxe4 14. Rxe4 Ng6 15. dxc5 Bxc5 {1-0 (39) Hansen,S (2555)-Peek,M (2383) Netherlands 2006}) 8... O-O $146 {[%emt 0:02:30]} ({Find the theoretical novelty and annotate with similar games:} 8... Nd7 9. a3 N5f6 10. c4 c5 11. Nc3 O-O 12. Be3 a6 13. Kg2 h6 14. Nh4 Bh7 15. f4 Qe7 {0-1 (36) Bodnaruk,A (2198)-Vozovic,O (2288) Kharkov 2005}) 9. a3 {[%emt 0:00:30]} Nc6 {[%emt 0:00:30]} 10. c4 {[%emt 0:00:30]} Nf6 {[%emt 0:01:30]} 11. b4 {[%emt 0:02:30]} a6 {[%emt 0:01:30]} 12. Bb2 {[%emt 0:01:30]} Be7 {[%emt 0:07:30]} 13. Re1 {[%emt 0:01:30]} Ne4 {[%emt 0:06:30]} (13... Nd7 $14) 14. Bd3 {[%emt 0:01:30]} Ng5 {[%emt 0:01:30]} 15. Bxf5 {[%emt 0:10:30]} exf5 {[%emt 0:00:30]} 16. Nbd2 {[%emt 0:01:30]} Bf6 {[%emt 0:09:30]} 17. Nxg5 {[%emt 0:03:30]} Bxg5 {[%emt 0:03:30]} 18. f4 {[%emt 0:00:30]} ({White should play} 18. d5 $16) 18... Bf6 {[%emt 0:02:30]} 19. Nf3 {[%emt 0:00:00]} Re8 {[%emt 0:00:30]} 20. Ne5 {[%emt 0:00:00]} Ne7 {[%emt 0:04:30]} 21. Qf3 {[%emt 0:05:30]} c6 {[%emt 0:02:30]} 22. Kh1 {[%emt 0:00:00]} g6 {[%emt 0:05:30]} 23. h3 {[%emt 0:02:00]} Bg7 {[%emt 0:05:30]} 24. Kg2 {[%emt 0:01:30]} Nc8 {[%emt 0:01:30]} 25. a4 {[%emt 0:05:30]} Nd6 {[%emt 0:01:30]} 26. Qb3 {[%emt 0:01:30]} Bxe5 {[%emt 0:05:30]} 27. fxe5 {[%emt 0:04:30]} Ne4 {[%emt 0:01:30]} 28. d5 {[%emt 0:01:30]} cxd5 {[%emt 0:06:30]} 29. cxd5 {[%emt 0:00:30]} Qb6 $2 {[%emt 0:00:30]} (29... Rc8 $11 {and Black is okay.}) 30. Re2 {[%emt 0:03:30]} Rad8 {[%emt 0:05:35]} 31. Rd1 {[%emt 0:03:30]} a5 {[%emt 0:02:55]} (31... Qc7 $16 {was called for.}) 32. b5 {[%emt 0:01:30]} Qc5 {[%emt 0:01:17]} 33. Rd3 {[%emt 0:11:30]} Qe7 {[%emt 0:03:59]} 34. Qa2 {[%emt 0:07:30]} Qb4 {[%emt 0:03:42]} 35. Rd4 {[%emt 0:02:30]} Qc5 {[%emt 0:00:24]} 36. Rd3 {[%emt 0:02:30]} Qb4 {[%emt 0:00:20]} 37. Qa1 {[%emt 0:01:11]} Qc4 {[%emt 0:03:12]} 38. Qd1 {[%emt 0:00:10]} Nc5 {[%emt 0:00:34]} 39. Rd4 {[%emt 0:04:18]} Qb3 {[%emt 0:00:12]} 40. Qxb3 {[%emt 0:00:00]} Nxb3 {[%emt 0:30:33]} 41. Rd1 {[%emt 0:05:51]} Nc5 {[%emt 0:00:00]} 42. Bc3 {[%emt 0:00:00]} Nxa4 {[%emt 0:00:00]} 43. Bxa5 {[%emt 0:03:00]} Rd7 {[%emt 0:00:00]} 44. Ra2 {[%emt 0:05:30]} Nc5 {[%emt 0:00:00]} 45. Bc3 {[%emt 0:00:30]} Ne4 {[%emt 0:00:00]} 46. Ba1 {[%emt 0:01:30]} Red8 {[%emt 0:00:00]} (46... f6 $5) 47. Rc2 {[%emt 0:06:30]} h6 {[%emt 0:00:00]} ({Don't go for} 47... Rxd5 $2 48. Rxd5 Rxd5 49. Rc8+ Kg7 50. e6+ f6 51. e7 $18) (47... Kf8 $11 {keeps the balance.}) 48. h4 {[%emt 0:02:30]} (48. d6 $16) 48... g5 {[%emt 0:00:00]} 49. d6 {[%emt 0:00:00]} f6 {[%emt 0:00:11] [#]} (49... Ra8 {is a better defense.}) 50. e6 $1 {[%emt 0:04:00]} Rxd6 {[%emt 0:01:00]} 51. Rxd6 {[%emt 0:00:30]} Rxd6 {[%emt 0:02:46]} 52. Rc8+ {[%emt 0:00:30]} Kg7 {[%emt 0:00:30]} 53. e7 {[%emt 0:00:30]} Rd2+ {[%emt 0:00:00]} 54. Kf3 {[%emt 0:00:00]} Nd6 {[%emt 0:00:38]} 55. e8=Q {[%emt 0:04:57]} Nxe8 {[%emt 0:00:39]} 56. Rxe8 {[%emt 0:00:04]} Rd3+ {[%emt 0:03:59]} (56... Rd1 $16 {keeps fighting.}) 57. Re3 {[%emt 0:01:34]} Rd1 {[%emt 0:01:29]} 58. Bb2 {[%emt 0:02:08]} Rd2 {[%emt 0:00:15]} 59. Bc3 {[%emt 0:01:54]} (59. Rb3 $16) 59... g4+ {[%emt 0:00:06]} 0-1

[Event "Turkey IS Bank Super League 2017"]
[Site "Darica-Kocaeli"]
[Date "2017.08.06"]
[Round "13"]
[White "Gulden, Egemen"]
[Black "Ozenir, Ekin Baris"]
[Result "0-1"]
[ECO "C09"]
[WhiteElo "2044"]
[BlackElo "2098"]
[Annotator "NA"]
[PlyCount "94"]
[EventType "team-tourn"]
[EventCountry "TUR"]
[SourceTitle "playchess.com"]
[Source "ChessBase"]
[SourceQuality "1"]
[TimeControl "40/5400+30:1800+30"]

1. e4 {[%emt 0:01:30]} e6 {[%emt 0:01:00]} 2. d4 {[%emt 0:00:00]} d5 {[%emt 0:00:30]} 3. Nd2 {[%emt 0:00:00]} c5 {[%emt 0:00:30]} 4. Ngf3 {[%emt 0:00:30]} Nc6 {[%emt 0:02:30]} 5. exd5 {[%emt 0:00:30]} exd5 {[%emt 0:00:30]} 6. Bb5 {[%emt 0:00:30]} Bd6 {[%emt 0:00:30]} 7. dxc5 {[%emt 0:02:30]} Bxc5 {[%emt 0:02:30]} 8. O-O {[%emt 0:02:30]} Nge7 {[%emt 0:00:30]} 9. Nb3 {[%emt 0:02:30]} Bb6 {[%emt 0:02:30]} 10. Bg5 {[%emt 0:07:30]} O-O {[%emt 0:01:30]} 11. Nbd4 {[%emt 0:05:30]} (11. Re1 $5 {[%cal Rb5c6]} Qd6 12. c4 $14) 11... Bd7 {[%emt 0:21:30]} 12. a4 {[%emt 0:25:30]} a6 {[%emt 0:06:30]} 13. Be2 {[%emt 0:04:30]} f6 {[%emt 0:00:30]} 14. Be3 {[%emt 0:04:30]} Ne5 {[%emt 0:09:30]} 15. c3 $11 {[%emt 0:05:30]} Rc8 {[%emt 0:05:30]} 16. Qb3 {[%emt 0:06:30]} Nc4 {[%emt 0:04:30]} 17. Bf4 {[%emt 0:06:30]} Ng6 {[%emt 0:05:30]} 18. Bg3 {[%emt 0:00:30]} f5 {[%emt 0:11:30]} 19. h3 {[%emt 0:07:35]} f4 {[%emt 0:01:30]} 20. Bh2 {[%emt 0:00:02]} a5 {[%emt 0:08:05]} 21. Bd3 {[%emt 0:01:54]} Qf6 {[%emt 0:02:05]} 22. Qc2 {[%emt 0:06:11]} Bxd4 {[%emt 0:03:45]} 23. Nxd4 {[%emt 0:02:12]} Nge5 {[%emt 0:02:29]} 24. Bxh7+ {[%emt 0:04:01]} Kh8 {[%emt 0:00:04]} 25. b3 {[%emt 0:00:00]} Nd6 {[%emt 0:01:22]} 26. Rae1 {[%emt 0:01:33]} g6 {[%emt 0:02:27]} 27. Rxe5 {[%emt 0:01:14]} Qxe5 {[%emt 0:00:12]} 28. Bxg6 {[%emt 0:00:00]} Ne4 {[%emt 0:00:59]} 29. Qd1 {[%emt 0:01:48]} Nxc3 {[%emt 0:01:13]} 30. Qf3 {[%emt 0:00:53]} Qg5 {[%emt 0:01:08]} 31. Bd3 {[%emt 0:00:20]} Rce8 {[%emt 0:01:06]} 32. Rc1 {[%emt 0:00:36]} Ne4 {[%emt 0:01:13]} 33. Rc7 {[%emt 0:00:19]} Nd2 {[%emt 0:00:22]} 34. Qd1 {[%emt 0:00:30]} Qe5 {[%emt 0:00:54]} 35. Qxd2 {[%emt 0:01:08]} Qxc7 {[%emt 0:00:30]} 36. Ne2 {[%emt 0:00:00]} Qe5 {[%emt 0:00:42]} 37. Nxf4 {[%emt 0:00:44]} Qe1+ {[%emt 0:00:30]} 38. Qxe1 {[%emt 0:00:30]} Rxe1+ {[%emt 0:00:30]} 39. Bf1 {[%emt 0:00:00]} Rxf4 {[%emt 0:00:51]} 40. Bxf4 {[%emt 0:00:04]} Bf5 {[%emt 0:00:03]} 41. Bd2 {[%emt 0:01:56]} Rd1 {[%emt 0:00:30]} 42. Bxa5 {[%emt 0:00:30]} Bd3 {[%emt 0:00:00]} 43. g4 {[%emt 0:00:30]} Bxf1 {[%emt 0:00:00]} 44. Kh2 {[%emt 0:00:30]} Rd3 {[%emt 0:00:30]} 45. h4 {[%emt 0:00:30]} Rh3+ {[%emt 0:00:30]} 46. Kg1 {[%emt 0:00:30]} Be2 {[%emt 0:00:00]} 47. Bd8 {[%emt 0:02:30]} Bf3 {[%emt 0:00:00]} 0-1

[Event "Turkey IS Bank Super League 2017"]
[Site "Darica-Kocaeli"]
[Date "2017.08.06"]
[Round "13"]
[White "Unat, Can Haktan"]
[Black "Yilmaz, Goktan"]
[Result "0-1"]
[ECO "E60"]
[WhiteElo "2006"]
[BlackElo "2202"]
[Annotator "NA"]
[PlyCount "105"]
[EventType "team-tourn"]
[EventCountry "TUR"]
[SourceTitle "playchess.com"]
[Source "ChessBase"]
[SourceQuality "1"]
[TimeControl "40/5400+30:1800+30"]

{[%evp 8,97,6,25,32767,32767,32767,32767,32767,32767,32767,32767,32767,32767,32767,32767,18,32767,32767,32767,20,0,-1,-38,32,22,69,58,32767,83,93,74,110,37,57,9,56,-68,-68,-86,-72,-77,-79,-51,-16,-7,32767,32767,-68,32767,-81,-105,-80,32767,32767,32767,32767,32767,-127,32767,32767,32767,32767,-229,-272,32767,32767,-244,-242,-248,-277,-267,-278,32767,32767,32767,32767,-262,-334,-419,-386,-466,32767,32767,32767,32767,32767,32767,32767,32767,-593,-433]} 1. Nf3 {[%emt 0:00:30]} Nf6 {[%emt 0:01:00]} 2. g3 {[%emt 0:00:30]} g6 {[%emt 0:00:30]} 3. b3 {[%emt 0:00:30]} Bg7 {[%emt 0:00:00]} 4. Bb2 {[%emt 0:00:00]} O-O {[%emt 0:00:00]} 5. Bg2 {[%emt 0:00:00] LiveBook: 1800 Games} c5 {[%emt 0:00:30]} 6. c4 {[%emt 0:00:30]} Nc6 {[%emt 0:00:30]} 7. O-O {[%emt 0:00:30]} d6 {[%emt 0:00:00]} 8. d4 {[%emt 0:00:00]} cxd4 {[%emt 0:04:00]} 9. Nxd4 {[%emt 0:00:00]} Bd7 {[%emt 0:00:00]} 10. Nc3 {[%emt 0:03:30]} a6 {[%emt 0:01:00]} 11. Rc1 {[%emt 0:00:30]} Qa5 {[%emt 0:04:30] E60: King's Indian: Unusual lines and Fianchetto Variation without Nc3} 12. e3 {[%emt 0:06:30]} Rac8 {[%emt 0:01:30]} 13. Qe2 {[%emt 0:04:30]} (13. a3 Bg4 14. Qd2 Qh5 15. Nce2 Nxd4 16. Nxd4 e5 17. Nc2 Bf3 18. Bxf3 Qxf3 19. Qd1 Qc6 20. Nb4 Qb6 {½-½ (20) Bachmann,A (2649)-Shimanov,A (2627) Philadelphia 2016}) 13... Bg4 $146 {[%emt 0:02:30]} ({Predecessor:} 13... Rfe8 14. Rfd1 Bg4 15. Nxc6 bxc6 16. f3 Be6 17. Na4 c5 18. Bc3 Qc7 19. Qe1 {1-0 (89) Le Roux,J (2447)-Mogranzini,R (2421) Szeged 2007}) 14. f3 {[%emt 0:01:30]} Bd7 {[%emt 0:00:30]} 15. Rfd1 {[%emt 0:08:30]} Qh5 {[%emt 0:00:30]} (15... b5 $15) 16. Nxc6 {[%emt 0:01:30]} bxc6 {[%emt 0:04:30]} 17. Na4 {[%emt 0:10:30]} Rc7 {[%emt 0:07:30]} 18. c5 {[%emt 0:04:30]} d5 {[%emt 0:00:30]} 19. Nb6 {[%emt 0:00:30]} e5 {[%emt 0:00:30]} 20. Nxd7 {[%emt 0:00:30]} (20. Qxa6 $16 Be6 21. Rf1) 20... Nxd7 {[%emt 0:00:30]} 21. Rc2 {[%emt 0:13:30]} f5 {[%emt 0:02:30]} 22. f4 {[%emt 0:03:30]} (22. Qxa6 $14 e4 23. Bxg7 Kxg7 24. Qa5) 22... Qxe2 {[%emt 0:01:30]} 23. Rxe2 {[%emt 0:00:00]} exf4 {[%emt 0:01:30]} ({Worse is} 23... Nxc5 24. Ba3 $16 (24. fxe5 Rfc8 $11)) 24. Bxg7 {[%emt 0:04:00]} Kxg7 {[%emt 0:00:30]} 25. exf4 {[%emt 0:01:30]} Nxc5 {[%emt 0:00:30]} 26. Rc2 {[%emt 0:02:30]} Ne6 {[%emt 0:01:30]} 27. b4 {[%emt 0:00:30]} Rb8 {[%emt 0:02:30]} 28. a3 {[%emt 0:02:30]} Kf6 {[%emt 0:00:30]} 29. Re1 {[%emt 0:06:30]} Nd4 {[%emt 0:03:30]} 30. Rd2 {[%emt 0:00:30]} Nb5 {[%emt 0:00:30]} 31. Rde2 {[%emt 0:01:30]} Nxa3 {[%emt 0:01:30]} 32. Ra1 {[%emt 0:00:30]} Nc4 {[%emt 0:05:30]} 33. Rxa6 {[%emt 0:00:30]} Rb6 {[%emt 0:00:30]} 34. Ra8 {[%emt 0:02:30]} Rxb4 {[%emt 0:00:30]} 35. Rf8+ {[%emt 0:02:30]} Kg7 {[%emt 0:01:30]} 36. Rfe8 {[%emt 0:01:20]} Rb1+ {[%emt 0:01:30]} 37. Kf2 {[%emt 0:00:34]} Rb2 {[%emt 0:00:30]} 38. Rxb2 {[%emt 0:00:30]} Nxb2 {[%emt 0:00:00]} 39. Ke3 {[%emt 0:00:35]} Kf7 {[%emt 0:00:00]} 40. Rb8 {[%emt 0:00:41]} Nc4+ {[%emt 0:00:30]} 41. Kd4 {[%emt 0:00:20]} Ke6 {[%emt 0:01:30]} 42. Kc5 {[%emt 0:00:00]} Nd6 {[%emt 0:01:30]} 43. Kb6 {[%emt 0:01:00]} Kd7 {[%emt 0:00:30]} 44. Rg8 {[%emt 0:00:30]} Rb7+ {[%emt 0:00:00]} 45. Kc5 {[%emt 0:01:30]} Rb5+ {[%emt 0:00:00]} 46. Kd4 {[%emt 0:00:30]} Ke6 {[%emt 0:00:30]} 47. Ra8 {[%emt 0:00:30]} c5+ {[%emt 0:00:30]} 48. Kc3 {[%emt 0:00:30]} d4+ {[%emt 0:00:00]} 49. Kc2 $19 {[%emt 0:00:00]} c4 {[%emt 0:00:00]} 50. Bf1 {[%emt 0:01:00]} d3+ {[%emt 0:01:30]} 51. Kd2 {[%emt 0:00:30]} Rb2+ {[%emt 0:00:30]} 52. Ke3 {[%emt 0:00:30]} Rb1 {[%emt 0:00:30]} 53. Kd4 {[%emt 0:03:30]} 0-1

[Event "Turkey IS Bank Super League 2017"]
[Site "Darica-Kocaeli"]
[Date "2017.08.08"]
[Round "13"]
[White "Gundogan, Sinem Cagla"]
[Black "Ayan, Bengu Sena"]
[Result "1-0"]
[ECO "C02"]
[WhiteElo "2000"]
[BlackElo "1862"]
[Annotator "NA RC"]
[PlyCount "113"]
[EventType "team-tourn"]
[EventCountry "TUR"]
[SourceTitle "playchess.com"]
[Source "ChessBase"]
[SourceQuality "1"]
[TimeControl "40/5400+30:1800+30"]

1. e4 {[%emt 0:00:30]} e6 {[%emt 0:01:00]} 2. d4 {[%emt 0:00:30]} d5 {[%emt 0:00:30]} 3. e5 {[%emt 0:00:30]} c5 {[%emt 0:00:30]} 4. c3 {[%emt 0:00:00]} Qb6 {[%emt 0:00:30]} 5. Nf3 {[%emt 0:00:00]} Nc6 {[%emt 0:00:00]} 6. a3 {[%emt 0:00:00]} Bd7 {[%emt 0:00:00]} 7. b4 {[%emt 0:01:00]} cxd4 {[%emt 0:00:30]} 8. cxd4 {[%emt 0:00:00]} Rc8 {[%emt 0:00:00]} 9. Be3 {[%emt 0:01:00]} Nge7 {[%emt 0:07:00]} 10. Bd3 {[%emt 0:03:30]} Nf5 {[%emt 0:02:30]} 11. Nbd2 {[%emt 0:03:30]} Be7 {[%emt 0:10:30]} ({Not} 11... Nfxd4 $2 12. Nxd4 Nxd4 13. Qg4 $18) 12. O-O {[%emt 0:03:30]} O-O {[%emt 0:06:30]} 13. Nb3 {[%emt 0:02:30] C02: French: Advance Variation} Nxe3 {[%emt 0:04:30]} 14. fxe3 {[%emt 0:00:30] LiveBook: 27 Games} f6 {[%emt 0:00:30]} 15. Nc5 {[%emt 0:01:30]} Qc7 {[%emt 0:03:30]} 16. exf6 {[%emt 0:05:30]} Bxf6 {[%emt 0:01:30]} 17. Rc1 {[%emt 0:01:30]} b6 {[%emt 0:10:30]} 18. Nxd7 {[%emt 0:26:30]} Qxd7 {[%emt 0:00:30]} 19. b5 $146 {[%emt 0:10:30]} ({Predecessor:} 19. Ba6 Rc7 20. Qc2 Bd8 {1-0 (41) Jonkman,H (2498)-Dittmar,P (2330) Saint Vincent 2002}) 19... Ne7 {[%emt 0:04:30]} 20. Rxc8 {[%emt 0:01:30]} Qxc8 {[%emt 0:08:30]} 21. Qb1 {[%emt 0:04:30]} h6 {[%emt 0:02:30]} 22. Qb3 {[%emt 0:09:30]} Kh8 {[%emt 0:06:30]} 23. Bb1 {[%emt 0:01:30]} Qc4 {[%emt 0:01:30]} (23... g6 $11) 24. Qxc4 {[%emt 0:03:21]} dxc4 {[%emt 0:00:30]} 25. Ne5 {[%emt 0:00:00]} Rc8 {[%emt 0:01:30]} 26. Nf7+ {[%emt 0:00:09]} Kg8 {[%emt 0:00:30]} 27. Nd6 {[%emt 0:00:30]} Rc7 {[%emt 0:01:30]} (27... Rd8 $16 {is a better defense.} 28. Nxc4 Rc8) 28. Ne8 {[%emt 0:04:27]} Rd7 {[%emt 0:05:30]} 29. Ba2 {[%emt 0:01:17]} Kf7 {[%emt 0:00:30]} 30. Nxf6 {[%emt 0:00:36]} gxf6 {[%emt 0:00:30]} 31. Bxc4 {[%emt 0:00:00]} Nd5 {[%emt 0:04:02]} 32. Kf2 {[%emt 0:00:49]} Rc7 {[%emt 0:01:06]} 33. Rc1 {[%emt 0:00:59]} Ke7 {[%emt 0:01:55]} 34. Ke2 {[%emt 0:02:27]} Kd6 {[%emt 0:01:18]} 35. Kd3 {[%emt 0:02:17]} e5 {[%emt 0:06:17]} 36. g3 {[%emt 0:03:30]} f5 {[%emt 0:02:26]} 37. e4 {[%emt 0:01:42]} fxe4+ {[%emt 0:01:52]} 38. Kxe4 {[%emt 0:00:33]} exd4 {[%emt 0:00:25]} 39. Kxd4 {[%emt 0:00:27]} Nf6 {[%emt 0:01:21]} 40. Re1 {[%emt 0:00:00]} Ng4 {[%emt 0:04:18]} 41. Re6+ {[%emt 0:10:56]} Kd7 {[%emt 0:00:30]} 42. Re2 {[%emt 0:00:00]} Kd8 {[%emt 0:05:30]} 43. Be6 {[%emt 0:01:00]} Nf6 {[%emt 0:03:30]} 44. Ke5 {[%emt 0:03:30]} Nd7+ {[%emt 0:02:30]} 45. Kf5 {[%emt 0:02:30]} Nf8 {[%emt 0:01:51]} 46. a4 {[%emt 0:04:16]} Rc5+ {[%emt 0:00:55]} 47. Kf6 {[%emt 0:00:46]} Nxe6 {[%emt 0:01:01]} 48. Kxe6 {[%emt 0:01:51]} Rc4 {[%emt 0:01:56]} 49. Ra2 {[%emt 0:01:00]} h5 {[%emt 0:01:02]} 50. Kf5 {[%emt 0:00:11]} Ke7 {[%emt 0:00:01]} 51. Kg5 {[%emt 0:01:24]} Rc5+ {[%emt 0:03:03]} 52. Kg6 {[%emt 0:00:10]} Re5 $18 {[%emt 0:02:49]} 53. Rf2 {[%emt 0:00:22]} Kd6 {[%emt 0:03:47]} 54. Rf5 {[%emt 0:05:03]} Re4 {[%emt 0:01:30]} 55. Rf4 {[%emt 0:00:08]} Re5 {[%emt 0:00:06]} 56. Rh4 {[%emt 0:00:37]} Ke6 {[%emt 0:02:38]} 57. Rxh5 {[%emt 0:00:38]} 1-0